{"text_format":"3","workbook":"xlsx","n_sheets":1,"sheets":["安装工程"],"not_rendered":{"defined_names":3},"read":"whole","date_system":"1900"}

{"sheet":"安装工程","index":0,"n_rows":87,"n_cols":13,"rows_kept":87,"merged":[[0,0,1,9],[3,1,3,4],[28,1,28,2],[37,1,37,2],[44,1,44,2],[58,1,58,2],[60,1,60,2],[82,1,82,2],[85,0,85,5],[86,0,86,9]]}
["龙翔西路二段项目安装招标控制价"]
[]
["序号","项目名称","项目特征描述","计量\r\n单位","工程量","全费用单价限价（元）","限价合价","班组所报全费用单价（元）","合价（元）","甲供材损耗"]
["一","排水工程"]
[1,"挖沟槽土（石）方","1.土石类别：土石综合 \n2.挖土深度：综合\n3.开挖方式：投标人自行综合考虑\n4.对管线、构筑物、建筑物等采取的保护措施，边坡施工防护及变形观测措施：由投标人自行确定，包含在投标报价中\n5.未尽事宜满足设计及现行技术、质量验收规范要求","m3","1922.9",15,{"$f":"E5*F5","v":28843.5}]
[2,"沟槽回填","1.密实度要求：按设计及规范要求夯实\n2.填方材料品种：满足设计规范要求（石方解小由投标人自行考虑，包含在投标报价中）\n3.填方来源、运距：投标人自行综合考虑\n4.对管线、构筑物、建筑物等采取的保护措施，边坡施工防护及变形观测措施：由投标人自行确定，包含在投标报价中\n5.未尽事宜满足设计及现行技术、质量验收规范要求","m3","1379.06",8,{"$f":"E6*F6","v":11032.48}]
[3,"余方弃置","1.废弃料品种：土石综合\n2.场外运距、弃土场费用：投标人自行考虑\n3.未尽事宜满足设计及现行技术、质量验收规范要求","m3","543.84",12,6526.08]
[4,"井周C25砼加固（车行道）","1.回填材料：C25现浇混凝土\n2.部位：详设计\n3.包含道路基层拆除\n4.粒径及密实度要求：满足设计及现行技术、质量、施工验收规范要求\n5.混凝土运输及浇筑方式：投标人自行考虑\n6未尽事宜满足设计及现行技术、质量验收规范要求","m3",48,460,22080]
[5,"沟槽回填 C25","1.回填材料：C25现浇混凝土\n2.部位：详设计\n3.包含道路基层拆除\n4.粒径及密实度要求：满足设计及现行技术、质量、施工验收规范要求\n5.混凝土运输及浇筑方式：投标人自行考虑\n6未尽事宜满足设计及现行技术、质量验收规范要求","m3","21.86",460,10055.6]
[6,"检查井、雨水口混凝土加固 C30(车行道)","1.回填材料：C25现浇混凝土\n2.部位：详设计\n3.包含道路基层拆除\n4.粒径及密实度要求：满足设计及现行技术、质量、施工验收规范要求\n5.混凝土运输及浇筑方式：投标人自行考虑\n6.钢筋规格：详见设计施工图\n7.钢筋连接方式、安装方式：投标人自行考虑\n8.未尽事宜满足设计及现行技术、质量验收规范要求","m3",81,460,37260]
[7,"国标Ⅱ级钢筋混凝土管 DN300mm","1.管材：钢筋混凝土管（甲供）\n2.规格：D300 Ⅱ级\n3.埋设深度：综合\n4.接口形式：承插接口\n5.基础垫层厚度、材料品种、强度：砂垫层\n6.管道检验及试验要求：满足设计及现行技术、质量、施工验收规范要求\n7.场内外转运方式、运距：投标人自行考虑，包含在投标报价中\n8.未尽事宜满足设计及现行技术、质量验收规范要求","m","13.9",50,695]
[8,"雨水 高密度聚乙烯热态缠绕结构壁B型管（SN≥8000N/m2） DN500mm","\n1.材质及规格 ：高密度聚乙烯热态缠绕结构壁B型管（SN≥8000N/m2） DN500mm（甲供）\n2.连接形式 ：弹性密封连接    \n3.铺设深度：综合 \n4.管道检验及试验要求：满足设计要求\n5.未尽事宜满足设计及现行技术、质量验收规范要求","m","482.53",25,12063.25]
[9,"污水 高密度聚乙烯热态缠绕结构壁B型管（SN≥8000N/m2） DN500mm","\n1.材质及规格 ：高密度聚乙烯热态缠绕结构壁B型管（SN≥8000N/m2） DN500mm（甲供）\n2.连接形式 ：弹性密封连接    \n3.铺设深度：综合 \n4.管道检验及试验要求：满足设计要求\n5.未尽事宜满足设计及现行技术、质量验收规范要求","m","64.22",25,1605.5]
[10,"污水 高密度聚乙烯热态缠绕结构壁B型管（SN≥8000N/m2） DN400mm","\n1.材质及规格 ：高密度聚乙烯热态缠绕结构壁B型管（SN≥8000N/m2） DN400mm（甲供）\n2.连接形式 ：弹性密封连接    \n3.铺设深度：综合 \n4.管道检验及试验要求：满足设计要求\n5.未尽事宜满足设计及现行技术、质量验收规范要求","m","124.86",24,2996.64]
[11,"中粗砂回填","1.厚度:100mm~200mm\n2.材料品种:中粗砂\n3.其余满足设计及现行技术、质量验收规范要求.\n4.其他详见设计施工图","m³",150,150,22500]
[12,"混凝土污水检查井(人行道)","1.垫层、基础材质及厚度：C30 P6混凝土底板\n2.混凝土强度等级 ：C30 P6\n3.盖板材质、规格 ：C30现浇钢筋混凝土\n4.井筒：C30现浇混凝土\n4.井盖、井圈材质及规格 ：球磨铸铁五防井盖井座，包含防坠网\n5.踏步材质、规格 ：球墨铸铁爬梯 295×220（180）mm\n6.流槽：C30混凝土\n7.具体做法详见设计施工图\n8.混凝土运输及浇筑方式：投标人自行考虑\n9.钢筋连接方式、安装方式：投标人自行考虑             10.模板及脚手架包含在综合单价中，不再单独考虑\n11.未尽事宜满足设计及现行技术、质量验收规范要求","座","6",4200,25200]
[13,"混凝土污水检查井（车行道）","1.垫层、基础材质及厚度：C30 P6混凝土底板\n2.混凝土强度等级 ：C30 P6\n3.盖板材质、规格 ：C30现浇钢筋混凝土\n4.井筒：C30现浇混凝土\n4.井盖、井圈材质及规格 ：球磨铸铁五防井盖井座，包含防坠网\n5.踏步材质、规格 ：球墨铸铁爬梯 295*220（180）mm\n6.流槽：C30混凝土\n7.具体做法详见设计施工图\n8.混凝土运输及浇筑方式：投标人自行考虑\n9.钢筋连接方式、安装方式：投标人自行考虑\n10.模板及脚手架包含在综合单价中，不再单独考虑\n11.未尽事宜满足设计及现行技术、质量验收规范要求","座","4",4200,16800]
[14,"混凝土雨水检查井(人行道含海绵城市井盖)","1.垫层、基础材质及厚度：C30 P6混凝土底板\n2.混凝土强度等级 ：C30 P6\n3.盖板材质、规格 ：C30现浇钢筋混凝土\n4.井筒：C30现浇混凝土\n4.井盖、井圈材质及规格 ：球磨铸铁五防井盖井座，包含防坠网\n5.踏步材质、规格 ：球墨铸铁爬梯 295*220（180）mm\n6.流槽：C30混凝土\n7.具体做法详见设计施工图\n8.混凝土运输及浇筑方式：投标人自行考虑\n9.钢筋连接方式、安装方式：投标人自行考虑\n10.模板及脚手架包含在综合单价中，不再单独考虑\n11.未尽事宜满足设计及现行技术、质量验收规范要求","座","12",4200,50400]
[15,"混凝土雨水检查井（车行道）","1.垫层、基础材质及厚度：C30 P6混凝土底板\n2.混凝土强度等级 ：C30 P6\n3.盖板材质、规格 ：C30现浇钢筋混凝土\n4.井筒：C30现浇混凝土\n4.井盖、井圈材质及规格 ：球磨铸铁五防井盖井座，包含防坠网\n5.踏步材质、规格 ：球墨铸铁爬梯 295*220（180）mm\n6.流槽：C30混凝土\n7.具体做法详见设计施工图\n8.混凝土运输及浇筑方式：投标人自行考虑\n9.钢筋连接方式、安装方式：投标人自行考虑\n10.模板及脚手架包含在综合单价中，不再单独考虑\n11.未尽事宜满足设计及现行技术、质量验收规范要求","座","4",4000,16000]
[16,"消能井（车行道）","1.垫层、基础材质及厚度：C30 混凝土底板\n2.混凝土强度等级 ：C30 \n3.盖板材质、规格 ：C30现浇钢筋混凝土\n4.井筒：C30现浇混凝土\n4.井盖、井圈材质及规格 ：球磨铸铁五防井盖井座，包含防坠网\n5.踏步材质、规格 ：球墨铸铁爬梯 295*220（180）mm\n6.流槽：C30混凝土\n7.管道设置钢筋格栅\n8.具体做法详见设计施工图\n9.混凝土运输及浇筑方式：投标人自行考虑\n10.钢筋连接方式、安装方式：投标人自行考虑\n11.模板及脚手架包含在综合单价中，不再单独考虑\n12.未尽事宜满足设计及现行技术、质量验收规范要求","座","1",3900,3900]
[17,"沉砂井（人行道）","1.垫层、基础材质及厚度：C20垫层 C30基础\n2.混凝土强度等级 ：C30 \n3.盖板材质、规格 ：C30现浇钢筋混凝土\n4.井筒：C30现浇混凝土\n4.井盖、井圈材质及规格 ：球磨铸铁五防井盖井座，包含防坠网\n5.踏步材质、规格 ：球墨铸铁爬梯 295*220（180）mm\n6.流槽：C30混凝土\n7.具体做法详见设计施工图\n8.混凝土运输及浇筑方式：投标人自行考虑\n9.钢筋连接方式、安装方式：投标人自行考虑\n10.未尽事宜满足设计及现行技术、质量验收规范要求","座","4",4200,16800]
[18,"沉砂井（车行道）","1.垫层、基础材质及厚度：C20垫层 C30基础\n2.混凝土强度等级 ：C30 \n3.盖板材质、规格 ：C30现浇钢筋混凝土\n4.井筒：C30现浇混凝土\n4.井盖、井圈材质及规格 ：球磨铸铁五防井盖井座，包含防坠网\n5.踏步材质、规格 ：球墨铸铁爬梯 295*220（180）mm\n6.流槽：C30混凝土\n7.具体做法详见设计施工图\n8.混凝土运输及浇筑方式：投标人自行考虑\n9.钢筋连接方式、安装方式：投标人自行考虑\n10.未尽事宜满足设计及现行技术、质量验收规范要求","座","4",4200,16800]
[19,"浅型井(人行道含海绵城市井盖)","1.垫层、基础材质及厚度：C20垫层 C30基础\n2.混凝土强度等级 ：C30 \n3.盖板材质、规格 ：C30现浇钢筋混凝土\n4.井筒：C30现浇混凝土\n4.井盖、井圈材质及规格 ：球磨铸铁五防井盖井座，包含防坠网\n5.踏步材质、规格 ：球墨铸铁爬梯 295*220（180）mm\n6.流槽：C30混凝土\n7.具体做法详见设计施工图\n8.混凝土运输及浇筑方式：投标人自行考虑\n9.钢筋连接方式、安装方式：投标人自行考虑\n10.未尽事宜满足设计及现行技术、质量验收规范要求","座","6",2200,13200]
[20,"检查井上部结构改造","1.材料品种 ：井口采用M10水泥砂浆砌C30砼块、井口采用C30混凝土井身采用C30混凝土，上部提升段采用C30混凝土\n2.检查井规格 ：根据现场情况确定\n3.平均升（降）高度：详见设计施工图\n4.井盖做法：拆除原有井盖跟换为自调式防沉降球墨铸铁井盖及盖座，防坠网\n5.未尽事宜满足设计及现行技术、质量验收规范要求","座","4",800,3200]
[21,"双箅雨水口","1.名称：双箅雨水口\n2.垫层材料：C25商品砼\n3.基础材料：C30商品砼\n4.井墙材料：M10水泥砂浆砌C30砌块\n5.井深：详设计图\n6.雨水篦子采用球墨铸铁QT500-7，具体应符合《球墨铸铁件》(GB1348-2009）的要求\n7.模板及脚手架包含在综合单价中，不再单独考虑\n8.未尽事宜满足设计及现行技术、质量验收规范要求","座","7",450,3150]
[22,"急流槽 C30","1.断面尺寸 ：500×500mm\n2.材料品种、厚度：C30混凝土 \n3.沉降缝做法：隔2.0m或1.75m设一道沉降缝,在地质条件发生变化的地方应加设沉降缝,沉降缝缝宽20~30毫米。沉降缝在阶梯跌水构筑物基础用沥青木板嵌填,阶梯跌水构筑物侧墙外侧5cm以热沥青浸麻丝填塞,内侧以1:3水泥砂浆填塞15cm,中间嵌沥青木板。\n4.具体做法详见设计施工图\n5.混凝土运输及浇筑方式：投标人自行考虑\n6.未尽事宜满足设计及现行技术、质量验收规范要求","m","85.08",200,17016]
[23,"明渠 C30  ","1.断面尺寸 ：400×400mm\n2.材料品种、厚度：C30混凝土 \n3.混凝土运输及浇筑方式：投标人自行考虑\n4.未尽事宜满足设计及现行技术、质量验收规范要求","m","70.06",200,14012]
[24,"排水暗沟 C30","1.断面规格 ：300×400mm\n2.垫层、基础材质及厚度 ：C30混凝土\n3.砌筑材料品种、规格、强度等级 ：C30预制混凝土\n4.盖板材质及规格 ：C30预制沟盖板、成品球墨铸铁雨水篦\n5.防渗、防水要求 ：铸铁雨水篦涂沥青清漆两道以防腐\n6.混凝土运输及浇筑方式：投标人自行考虑\n7.未尽事宜满足设计及现行技术、质量验收规范要求","m","60.18",180,10832.4]
["二、","海绵城市",{"$nulls":4},0]
[1,"溢流式雨水口","1.名称：溢流式雨水口\n2.垫层材料：C20细石商品砼\n3.基础材料：C30商品砼\n4.井深：详设计图\n5.做法详见图集“16S518雨水口”第8页\n6.混凝土运输及浇筑方式：投标人自行考虑\n7.模板及脚手架包含在综合单价中，不再单独考虑\n8.未尽事宜满足设计及现行技术、质量验收规范要求","座","12",450,5400]
[2,"溢流式雨水口连接管d200mm","1.垫层、基础材质及厚度：详设计 \n2.材质及规格：d200PVC材质\n3.连接形式：详图集06MS201\n4.铺设深度：综合\n5.未尽事宜满足设计及现行技术、质量验收规范要求","m","82.9",30,2487]
[3,"不锈钢雨水篦子","1.材质 ：304不锈钢\n2.规格尺寸 ：φ700mm壁厚3mm，具体尺寸详见海绵城市水篦子设计图\n3.混凝土压脚：C20\n4.未尽事宜满足设计及现行技术、质量验收规范要求","个","51",80,4080]
[4,"HDPE防渗膜600g/m2","1.材料规格、强度:HDPE防渗膜600g/m2\n2.未尽事宜满足设计及现行技术、质量验收规范要求","m2","1733.85",10,17338.5]
[5,"碎石阻隔带","1.材料规格：碎石\n2.未尽事宜满足设计及现行技术、质量验收规范要求","m3","3.21",180,577.8]
[6,"C30混凝土下层绿地沉砂池、种植区挡墙","1.混凝土强度等级 ：C30\n2.混凝土运输及浇筑方式：投标人自行考虑\n3.具体做法详见下沉式绿地沉砂池大样图、下沉式绿地大样图\n4.未尽事宜满足设计及现行技术、质量验收规范要求","m3","109.7",470,51559]
[7,"散铺卵石","1.材料规格：卵石 粒径40mm\n2.未尽事宜满足设计及现行技术、质量验收规范要求","m3","1.15",330,379.5]
[8,"施工缝","1.类别 ：施工缝\n2.材料品种、规格:缝宽2cm，沥青麻丝填缝\n3.未尽事宜满足设计及现行技术、质量验收规范要求","m","23.76",20,475.2]
["三","排水工程脚手架及模板",{"$nulls":4},0]
[1,"急流槽模板","1.支模高度：综合\n2.模板及支架材料:由投标人根据设计文件结合自身的技术能力综合考虑\n3.本项目投标人应根据施工经验，现场实际情况和企业自身情况综合报价\n4.未尽事宜满足设计及现行技术、质量验收规范要求","m2","213.2",60,12792]
[2,"明渠模板","1.支模高度：综合\n2.模板及支架材料:由投标人根据设计文件结合自身的技术能力综合考虑\n3.本项目投标人应根据施工经验，现场实际情况和企业自身情况综合报价\n4.未尽事宜满足设计及现行技术、质量验收规范要求","m2","88.98",60,5338.8]
[3,"暗排水沟模板","1.支模高度：综合\n2.模板及支架材料:由投标人根据设计文件结合自身的技术能力综合考虑\n3.本项目投标人应根据施工经验，现场实际情况和企业自身情况综合报价\n4.未尽事宜满足设计及现行技术、质量验收规范要求","m2","164.89",60,9893.4]
[4,"下层绿地沉砂池、种植区挡墙模板","1.支模高度：综合\n2.模板及支架材料:由投标人根据设计文件结合自身的技术能力综合考虑\n3.本项目投标人应根据施工经验，现场实际情况和企业自身情况综合报价\n4.未尽事宜满足设计及现行技术、质量验收规范要求","m2","786.94",60,47216.4]
[5,"现浇混凝土模板 垫层","1.支模高度：综合\n2.模板及支架材料:由投标人根据设计文件结合自身的技术能力综合考虑\n3.本项目投标人应根据施工经验，现场实际情况和企业自身情况综合报价\n4.未尽事宜满足设计及现行技术、质量验收规范要求","m2","8.41",60,504.6]
[6,"现浇混凝土模板 基础","1.支模高度：综合\n2.模板及支架材料:由投标人根据设计文件结合自身的技术能力综合考虑\n3.本项目投标人应根据施工经验，现场实际情况和企业自身情况综合报价\n4.未尽事宜满足设计及现行技术、质量验收规范要求","m2","5.33",60,319.8]
["四","电力工程",{"$nulls":4},{"$f":"E45*F45","v":0}]
[1,"挖沟槽、基坑土石方","1.土石类别：土石综合 \n2.挖土深度：综合\n3.开挖方式：投标人自行综合考虑\n4.对管线、构筑物、建筑物等采取的保护措施，边坡施工防护及变形观测措施：由投标人自行确定，包含在投标报价中\n5.未尽事宜满足设计及现行技术、质量验收规范要求","m3","1384.03",15,20760.45]
[2,"沟槽回填","1.密实度要求：按设计及规范要求夯实\n2.填方材料品种：满足设计规范要求\n3.填方来源、运距：投标人自行综合考虑\n4.对管线、构筑物、建筑物等采取的保护措施，边坡施工防护及变形观测措施：由投标人自行确定，包含在投标报价中\n5.未尽事宜满足设计及现行技术、质量验收规范要求","m3","943.23",8,7545.84]
[3,"余方弃置","1.废弃料品种：土石综合\n2.场外运距、弃土场费用：投标人自行考虑\n3.未尽事宜满足设计及现行技术、质量验收规范要求","m3","440.8",12,5289.6]
[4,"电力排管 12孔φ219mm+1孔φ110mm","1.名称：电力排管 12孔pvc-c电力护套管 φ219 SN8+1孔PVC-U梅花管 φ110、含管枕（管材甲供）\n2.材料品种：商品混凝土（另计）\n3.尺寸：详设计\n4.形状：长方形\n5.砼强度等级：C20\n6.基础：砼C20  \n7.电力排管回填土内全尺寸埋设警示带\n8.混凝土运输及浇筑方式：投标人自行考虑\n9.未尽事宜满足设计及现行技术、质量验收规范要求","m","269.52",60,16171.2]
[5,"电力排管 12孔φ200mm+1孔φ110mm 桥上","1.名称：电力排管 12孔pvc-u波纹管 φ200+1孔PVC-U梅花管 φ110、含管枕（管材甲供）\n2.材料品种：商品混凝土（另计）\n3.尺寸：详设计\n4.形状：长方形\n5.砼强度等级：C20\n6.基础：砼C20  \n7.电力排管回填土内全尺寸埋设警示带\n8.混凝土运输及浇筑方式：投标人自行考虑\n9.未尽事宜满足设计及现行技术、质量验收规范要求","m","115",60,6900]
[6,"电力排管 6孔φ219mm+1孔φ110mm","1.名称：电力排管 6孔（pvc-c电力护套管 φ219 SN8）+1孔（PVC-U梅花管 φ110）、含管枕（管材甲供）\n2.材料品种：商品混凝土（另计）\n3.尺寸：详设计\n4.形状：长方形\n5.砼强度等级：C20\n6.基础：砼C20  \n7.电力排管回填土内全尺寸埋设警示带\n8.混凝土运输及浇筑方式：投标人自行考虑\n9.未尽事宜满足设计及现行技术、质量验收规范要求","m","76.84",35,2689.4]
[7,"直通电缆井3.0×1.6×1.9m","1.垫层、基础材质及厚度：100厚C15混凝土垫层、300厚C30钢筋砼底板\n2.300厚C30钢筋砼井壁\n3.200厚C30钢筋砼顶板\n4.五防球墨铸铁井盖井座 Φ700（B125类型）\n5.含井内踏步及所有预埋铁件，制作、安装等费用综合考虑在该综合单价中\n6.聚合物防水砂浆抹面\n7.井底设置0.4*0.4*0.4自然渗水坑\n8.具体做法详设计大样图\n9.含钢筋制安\n10.混凝土运输及浇筑方式：投标人自行考虑\n11.模板及脚手架包含在综合单价中，不再单独考虑\n12.未尽事宜满足设计及现行技术、质量验收规范要求","座","6",13500,81000]
[8,"三通电缆井5.0×1.6×1.9m","1.垫层、基础材质及厚度：100厚C15混凝土垫层、300厚C30钢筋砼底板\n2.300厚C30钢筋砼井壁\n3.200厚C30钢筋砼顶板\n4.五防球墨铸铁井盖井座 Φ700（B125类型）\n5.含井内踏步及所有预埋铁件，制作、安装等费用综合考虑在该综合单价中\n6.聚合物防水砂浆抹面\n7.井底设置0.4*0.4*0.4自然渗水坑\n8.具体做法：详设计大样图\n9.含钢筋制安\n10.混凝土运输及浇筑方式：投标人自行考虑\n11.模板及脚手架包含在综合单价中，不再单独考虑\n12.未尽事宜满足设计及现行技术、质量验收规范要求","座","2",22500,45000]
[9,"转弯电缆井6.0×1.6×1.9m","1.垫层、基础材质及厚度：100厚C15混凝土垫层、300厚C30钢筋砼底板\n2.300厚C30钢筋砼井壁\n3.200厚C30钢筋砼顶板\n4.五防球墨铸铁井盖井座 Φ700（B125类型）\n5.含井内踏步及所有预埋铁件，制作、安装等费用综合考虑在该综合单价中\n6.聚合物防水砂浆抹面\n7.井底设置0.4*0.4*0.4自然渗水坑\n8.具体做法：详设计大样图\n9.含钢筋制安\n10.混凝土运输及浇筑方式：投标人自行考虑\n11.模板及脚手架包含在综合单价中，不再单独考虑\n12.未尽事宜满足设计及现行技术、质量验收规范要求","座","1",25500,25500]
[10,"热镀锌角钢 ∠50×5 L=2500mm","1.名称：接地极\n2.材质：热镀锌角钢\n3.规格：∠70*7 L=1190\n4.安装部位：电缆接地极\n5.未尽事宜满足设计及现行技术、质量验收规范要求","根","33",50,1650]
[11,"镀锌扁钢 -50×5mm","1.名称：接地极\n2.材质：镀锌扁钢\n3.规格：-50*5mm\n4.安装部位：电缆接地极\n5.未尽事宜满足设计及现行技术、质量验收规范要求","m","576.36",28,16138.08]
[12,"接地装置调试","1.名称：接地网调试\n2.包含调试范围或图纸范围内的所有工作并满足设计图纸及验收规范要求\n3.未尽事宜满足设计及现行技术、质量验收规范要求","系统","1",800,800]
[13,"标示桩","1.名称：电缆标志桩\n2.未尽事宜满足设计及现行技术、质量验收规范要求","块","1",50,50]
["五","电力工程脚手架及模板",{"$nulls":4},0]
[1,"混凝土排管模板","1.支模高度：综合\n2.模板及支架材料:由投标人根据设计文件结合自身的技术能力综合考虑\n3.本项目投标人应根据施工经验，现场实际情况和企业自身情况综合报价\n4.未尽事宜满足设计及现行技术、质量验收规范要求","m2","719.57",60,{"$f":"E60*F60","v":43174.2}]
["六","照明工程"]
[1,"挖沟槽、基坑土石方","1.土石类别：土石综合 \n2.挖土深度：综合\n3.开挖方式：投标人自行综合考虑\n4.对管线、构筑物、建筑物等采取的保护措施，边坡施工防护及变形观测措施：由投标人自行确定，包含在投标报价中\n5.未尽事宜满足设计及现行技术、质量验收规范要求","m3","265.4",15,3981]
[2,"沟槽回填","1.密实度要求：按设计及规范要求夯实\n2.填方材料品种：满足设计规范要求（石方解小由投标人自行考虑，包含在投标报价中）\n3.填方来源、运距：投标人自行综合考虑\n4.对管线、构筑物、建筑物等采取的保护措施，边坡施工防护及变形观测措施：由投标人自行确定，包含在投标报价中\n5.未尽事宜满足设计及现行技术、质量验收规范要求","m3","15.36",8,122.88]
[3,"余方弃置","1.废弃料品种：土石综合\n2.场外运距、弃土场费用：投标人自行考虑\n3.未尽事宜满足设计及现行技术、质量验收规范要求","m3","250.04",12,3000.48]
[4,"管道包封 C20混凝土","1.名称：预埋电缆保护管砼包封\n2.砼：商品混凝土C20\n3.包封形式及部位：电缆埋管包封\n4.未尽事宜满足设计及现行技术、质量验收规范要求","m3","3.15",450,1417.5]
[5,"垫层（车行道下）","1.材料品种、规格：商品混凝土C20\n2.厚度：综合\n3.未尽事宜满足设计及现行技术、质量验收规范要求","m3","2.1",450,945]
[6,"单臂灯","1.名称：单臂灯 （甲供）\n2.型号：LED灯具(模块)非集成式，250W(50W×5)，灯具整体通过CQC节能或型式认证;灯具驱动通过CCC认证,采用GB/T 35269-2017标准中A型LED模块,3030芯片,50W每模块,单灯最大5模块，含附件，\n3.灯杆高度、材质：12m,臂长2m，灯杆制造标准CJ/T 527-2018或制造企业制定的更高标准，甲方负责将灯具及配件拉到工地门口，由承包方自行转运进施工场地内，转运费用不再单独计取，由承包人自行考虑。\n4.安装形式：详设计图，含基础接地\n5.基础：C20混凝土基础，预埋件由甲方提供承包方进行预埋\n6.附件配置：设置使用工具开启的闭锁防盗装置\n7.未尽事宜满足设计及现行技术、质量验收规范要求","套","26",400,10400]
[7,"防盗手孔井 500×500mm","1.名称：防盗手孔井 500*500mm\n2.垫层：C30混凝土垫层\n3.类型：C30混凝土井\n4.材料：井座为C30混凝土井座，井盖为高分子复合井盖，手孔井盖制造标准GB/T 23858-2009或等效BS EN 124：1994，承载等级B125，井内盖设置2个20×30mm椭圆孔，手孔井处设置路灯手孔标识，接线手孔主线进出线口用C20混凝土封堵,防止电缆被盗，井盖表面铸造“泸州路灯”四个字,灰色,色号1374\n5.模板及脚手架包含在综合单价中，不再单独考虑\n6.未尽事宜满足设计及现行技术、质量验收规范要求","座","29",450,13050]
[8,"防盗手孔井 600×600mm","1.名称：防盗手孔井  600×600mm\n2.垫层：C30混凝土垫层\n3.类型：C30混凝土井\n4.材料：井座为C30混凝土井座，井盖为复合井盖，手孔井盖制造标准GB/T 23858-2009或等效BS EN 124：1994，承载等级B125，井内盖设置2个20×30mm椭圆孔，手孔井处设置路灯手孔标识，接线手孔主线进出线口用C20混凝土封堵,防止电缆被盗，井盖表面铸造“泸州路灯”四个字,灰色,色号1374\n5.模板及脚手架包含在综合单价中，不再单独考虑\n6.未尽事宜满足设计及现行技术、质量验收规范要求","座","2",600,1200]
[9,"热镀锌接地扁钢 40×4mm","1.名称：接地母线\n2.材质：镀锌扁钢\n3.规格：-40×4mm\n4.未尽事宜满足设计及现行技术、质量验收规范要求","m","901.97",25,22549.25]
[10,"HDPE双壁波纹管 PE DN/OD 110mm SN8","1.材质及规格：HDPE双壁波纹管 PE DN/OD 110mm SN8（主材甲供）\n2.连接形式：综合考虑 \n3.铺设深度：综合考虑\n4.制造标准JG 3050-1998,PVC材质,硬质中型以上\n5.未尽事宜满足设计及现行技术、质量验收规范要求","m","2665.65",10,26656.5]
[11,"电缆过街保护管 DS 100×8×6000mm SN32 MPP","1.材质及规格：电缆过街保护管 DS 100×8×6000mm SN32 MPP\n2.连接形式：综合考虑 \n3.铺设深度：综合考虑\n4.制造标准DL/T 802.7-2010,MPP材质,内径100mm,壁厚8mm,环刚度32,热熔连接,单管长6000-9000mm,含管枕\n5.未尽事宜满足设计及现行技术、质量验收规范要求","m","105",50,5250]
[12,"电缆敷设 YJV-1KV-5×25mm2","1.名称：电力电缆（电缆甲供）\n2.规格、型号：YJV-1kV-5×25mm2\n3.材质：铜芯\n4.敷设方式、部位：综合\n5.电压等级（kV）：1kV\n6.未尽事宜满足设计及现行技术、质量验收规范要求","m","622.74",10,6227.4]
[13,"电缆敷设 YJV-1kV-5x16mm2","1.名称：电力电缆（电缆甲供）\n2.规格、型号：YJV-1kV-5×16mm2\n3.材质：铜芯\n4.敷设方式、部位：综合\n5.电压等级（kV）：1kV\n6.未尽事宜满足设计及现行技术、质量验收规范要求","m","324.93",7,2274.51]
[14,"配管 PVC50","1.材质及规格：PVC硬质建筑用绝缘电工套管 GY.305-50\n2.连接形式：综合考虑 \n3.铺设深度：综合考虑\n4.制造标准JG 3050-1998,PVC材质,硬质中型以上\n5.未尽事宜满足设计及现行技术、质量验收规范要求","m","52",12,624]
[15,"电缆头防水型绕包式 五芯 ≤35mm2","1.名称：电缆头防水型绕包式\n2.型号、规格：截面面积（mm2） ≤35\n3.材质、类型：综合考虑\n4.安装部位：终端头\n5.电压等级（kV）：1KV\n6.未尽事宜满足设计及现行技术、质量验收规范要求","个","78",70,5460]
[16,"接地极 L50×5×2500mm","1.名称：接地极 \n2.类型：接地极\n3.材质：镀锌角钢\n4.规格：L50×5×2500mm\n5.土质：综合\n6.基础接地形式：详设计\n7.未尽事宜满足设计及现行技术、质量验收规范要求","根","9",90,810]
[17,"绝缘护套导线 BVV-2.5mm2","1.名称：绝缘护套线 \n2.规格、型号：BVV-2.5mm2\n3.材质：铜芯\n4.敷设方式、部位：综合\n5.制造标准JB/T 8734-2012,通过CCC认证\n6.未尽事宜满足设计及现行技术、质量验收规范要求","m","500",3,1500]
[18,"≤1kV交流供电系统调试 （综合）","1.名称：供电系统调试 \n2.型号：综合 \n3.电压（KV）：≤1kV\n4.未尽事宜满足设计及现行技术、质量验收规范要求","系统","1",200,200]
[19,"接地装置调试","1.名称：接地装置调试 \n2.类别：接地网","系统","1",800,800]
[20,"现状灯杆迁改","1.名称：现状灯杆迁改\n2.型号：含管线及附件,基础、手孔新建（手孔井另列清单项）\n3.未尽事宜满足设计及现行技术、质量验收规范要求","套","3",600,1800]
[21,"路灯远程调试","1.名称：路灯远程调试\n2.类别：综合","系统","1",600,600]
["七","照明工程模板工程",{"$nulls":4},0]
[1,"现浇混凝土模板 管道包封","1.支模高度：综合\n2.模板及支架材料:由投标人根据设计文件结合自身的技术能力综合考虑\n3.本项目投标人应根据施工经验，现场实际情况和企业自身情况综合报价\n4.未尽事宜满足设计及现行技术、质量验收规范要求","m2","19.73",60,1183.8,{"$nulls":5},904803.94]
[2,"现浇混凝土模板 垫层","1.支模高度：综合\n2.模板及支架材料:由投标人根据设计文件结合自身的技术能力综合考虑\n3.本项目投标人应根据施工经验，现场实际情况和企业自身情况综合报价\n4.未尽事宜满足设计及现行技术、质量验收规范要求","m2","12.54",60,752.4]
["合  计",{"$nulls":5},{"$f":"SUM(G5:G85)","v":904803.94},null,{"$f":"SUM(I39:I44)","v":0}]
["说明：\n1.投标人根据施工工艺、工序及国家现行规范自行踏勘现场后综合考虑进行报价，结算时不作调整;\n2.全费用综合单价包含人工费、所有材料费（甲供材除外）、机械设备费、工具器具费、临时设施及措施费、大型机械进出场及场内转运费、下车费、吊装费、规费、管理费、配合费、安全文明施工费、以及各种风险费、保险费、施工过程中办理的各种手续费、降水费、排水费、各种检测费、利润、税费等完成该工作所需的全部费用，结算时无论涨跌、工程量增减或其它任何风险因素，均不作调整。。\n3.施工中所用临时配电箱、用电线路、临时用水管道、开关箱、机具等从建设方提供的接口处接出，所有材料、设备及安装费用含在综合单价中。\n4.现场安全环保文明施工管理要求：（1）由公司统一发放印有“兴绿园林”字样和LOGO的安全帽和反光背心，班组按实名制领取，使用完后交回项目部，否则按采购费用扣款，其余参照合同附件中安全环保管理协议执行。（2）现场雾炮机由甲方提供，投标单位需安排人员管理使用，人工费、油费及管理费用综合考虑到投标报价中，不单独计取。  （3）防尘网由甲方提供，投标单位安排人员进行覆盖、回收、现场转移等，人工费综合考虑到投标报价中，不单独计取。"]